[Event "106th British-ch Major 2019"]
[Site "Torquay"]
[Date "2019.07.30"]
[Round "4.21"]
[White "Chapman, Matt"]
[Black "Forster, Matthew"]
[Result "0-1"]
[ECO "B38"]
[WhiteElo "1957"]
[BlackElo "1825"]
[Annotator "NA"]
[PlyCount "110"]
[EventDate "2019.07.27"]
[EventType "swiss"]
[EventCountry "GBR"]
[SourceTitle "playchess.com"]
[Source "ChessBase"]
[SourceQuality "1"]
[TimeControl "40/5400+30:1800+30"]

1. e4 {[%emt 0:00:00]} c5 {[%emt 0:00:00]} 2. Nf3 {[%emt 0:00:00]} g6 {[%emt 0:00:00]} 3. d4 {[%emt 0:00:00]} cxd4 {[%emt 0:00:00]} 4. Nxd4 {[%emt 0:00:00]} Bg7 {[%emt 0:00:04]} 5. c4 {[%emt 0:00:37]} Nc6 {[%emt 0:01:06]} 6. Be3 {[%emt 0:00:15]} Nf6 {[%emt 0:02:46]} 7. Nc3 {[%emt 0:00:08]} b6 {[%emt 0:00:11]} 8. Be2 {[%emt 0:06:24]} Bb7 {[%emt 0:02:36]} 9. f3 {[%emt 0:02:10]} O-O {[%emt 0:04:10]} 10. O-O {[%emt 0:00:57]} d6 {[%emt 0:00:49]} 11. Qd2 {[%emt 0:01:03]} Nxd4 {[%emt 0:00:11]} 12. Bxd4 {[%emt 0:00:09]} Ne8 {[%emt 0:00:34]} 13. Be3 {[%emt 0:03:26]} Nc7 {[%emt 0:05:30]} 14. Rad1 {[%emt 0:02:51]} Rc8 {[%emt 0:05:58]} 15. Rfe1 {[%emt 0:08:31]} Kh8 {[%emt 0:04:26]} 16. Bf1 {[%emt 0:03:17]} Qe8 {[%emt 0:04:06]} 17. Nd5 {[%emt 0:06:54]} Ne6 {[%emt 0:04:55]} 18. b3 {[%emt 0:03:01]} Rd8 {[%emt 0:02:33]} 19. Kh1 {[%emt 0:02:09]} Nc5 {[%emt 0:07:32]} 20. Bg5 {[%emt 0:02:27]} f6 {[%emt 0:03:04]} 21. Be3 {[%emt 0:03:46]} Qf7 {[%emt 0:02:07]} 22. Bd3 {[%emt 0:06:50]} Na6 {[%emt 0:07:52]} 23. Nc3 {[%emt 0:02:05]} Nc7 {[%emt 0:00:22]} 24. Bb1 {[%emt 0:00:56]} e6 {[%emt 0:02:38]} 25. Bf4 {[%emt 0:03:56]} Rd7 {[%emt 0:07:39]} 26. Qe3 {[%emt 0:11:38]} Rfd8 {[%emt 0:01:21]} 27. Rd2 {[%emt 0:05:01]} f5 {[%emt 0:07:13]} 28. exf5 {[%emt 0:04:51]} gxf5 {[%emt 0:01:04]} 29. Red1 {[%emt 0:01:08]} e5 {[%emt 0:02:33]} 30. Bg5 {[%emt 0:00:09]} Bf6 {[%emt 0:01:07]} 31. Bxf6+ {[%emt 0:04:58]} Qxf6 {[%emt 0:00:22]} 32. a4 {[%emt 0:01:38]} Ne6 {[%emt 0:03:01]} 33. Nb5 {[%emt 0:01:27]} Nc5 {[%emt 0:05:13]} 34. Bc2 {[%emt 0:01:40]} a5 {[%emt 0:00:42]} 35. Nc3 {[%emt 0:01:00]} Kg7 {[%emt 0:03:43]} 36. Nb5 {[%emt 0:04:07]} Kf8 {[%emt 0:01:55]} 37. Qf2 {[%emt 0:01:37]} Bc6 {[%emt 0:02:48]} 38. Nc3 {[%emt 0:01:01]} Rg7 {[%emt 0:00:54]} 39. Ne2 {[%emt 0:01:31]} f4 {[%emt 0:05:00]} 40. Nc3 {[%emt 0:04:00]} Ke7 {[%emt 0:01:21]} 41. Nd5+ {[%emt 0:32:05]} Bxd5 {[%emt 0:30:33]} 42. Rxd5 {[%emt 0:00:04]} h5 {[%emt 0:00:00]} 43. Qd2 {[%emt 0:00:00]} h4 {[%emt 0:00:00]} 44. h3 {[%emt 0:00:00]} Rg3 {[%emt 0:00:00]} 45. b4 {[%emt 0:00:00]} axb4 {[%emt 0:00:00]} 46. Qxb4 {[%emt 0:00:00]} Qe6 {[%emt 0:00:00]} 47. Kh2 {[%emt 0:00:00]} Rdg8 {[%emt 0:00:00]} 48. Rg1 {[%emt 0:00:00]} e4 {[%emt 0:00:00]} 49. Qe1 {[%emt 0:00:00]} exf3 {[%emt 0:00:00]} 50. Qxe6+ {[%emt 0:00:00]} Nxe6 {[%emt 0:00:00]} 51. Rd2 {[%emt 0:00:00]} Ng5 {[%emt 0:00:00]} 52. Bf5 {[%emt 0:00:00]} fxg2 {[%emt 0:00:00]} 53. Bg4 {[%emt 0:00:00]} Rxh3+ {[%emt 0:00:00]} 54. Kxg2 {[%emt 0:00:00]} Rg3+ {[%emt 0:00:00]} 55. Kf2 {[%emt 0:00:00]} Ne4+ {[%emt 0:00:00]} 0-1

[Event "106th British-ch Major 2019"]
[Site "Torquay"]
[Date "2019.07.30"]
[Round "4.22"]
[White "Merriman, James"]
[Black "Gardiner, Eric D"]
[Result "0-1"]
[ECO "D20"]
[WhiteElo "1808"]
[BlackElo "1957"]
[Annotator "NA"]
[PlyCount "108"]
[EventDate "2019.07.27"]
[EventType "swiss"]
[EventCountry "GBR"]
[SourceTitle "playchess.com"]
[Source "ChessBase"]
[SourceQuality "1"]
[TimeControl "40/5400+30:1800+30"]

1. d4 {[%emt 0:03:58]} d5 {[%emt 0:00:00]} 2. c4 {[%emt 0:00:04]} dxc4 {[%emt 0:00:00]} 3. e4 {[%emt 0:00:03]} Nc6 {[%emt 0:00:00]} 4. d5 {[%emt 0:06:29]} Ne5 {[%emt 0:00:18]} 5. f4 {[%emt 0:04:41]} Nd3+ {[%emt 0:00:42]} 6. Bxd3 {[%emt 0:00:09]} cxd3 {[%emt 0:00:05]} 7. Qxd3 {[%emt 0:03:25]} e6 {[%emt 0:02:23]} 8. Nc3 {[%emt 0:00:32]} exd5 {[%emt 0:07:49]} 9. Qxd5 {[%emt 0:01:48]} Qxd5 {[%emt 0:01:38]} 10. Nxd5 {[%emt 0:00:25]} Bd6 {[%emt 0:00:45]} 11. Nf3 {[%emt 0:01:21]} Ne7 {[%emt 0:01:56]} 12. Nc3 {[%emt 0:01:03]} Bd7 {[%emt 0:05:00]} 13. Be3 {[%emt 0:02:41]} c6 {[%emt 0:05:27]} 14. O-O-O {[%emt 0:05:19]} Bc7 {[%emt 0:00:31]} 15. h3 {[%emt 0:05:13]} f6 {[%emt 0:01:40]} 16. Nd4 {[%emt 0:06:32]} O-O-O {[%emt 0:01:13]} 17. g4 {[%emt 0:00:41]} a6 {[%emt 0:02:55]} 18. Nb3 {[%emt 0:02:21]} b6 {[%emt 0:01:16]} 19. Rd2 {[%emt 0:09:51]} c5 {[%emt 0:05:46]} 20. Rhd1 {[%emt 0:01:51]} Bc6 {[%emt 0:03:00]} 21. Nd5 {[%emt 0:01:18]} Bxd5 {[%emt 0:01:00]} 22. exd5 {[%emt 0:00:07]} Bd6 {[%emt 0:04:04]} 23. a4 {[%emt 0:02:39]} Ng6 {[%emt 0:01:58]} 24. a5 {[%emt 0:03:12]} Rhe8 {[%emt 0:01:02]} 25. Bg1 {[%emt 0:07:07]} Bxf4 {[%emt 0:07:44]} 26. axb6 {[%emt 0:00:19]} Rxd5 {[%emt 0:03:27]} 27. Bxc5 {[%emt 0:03:05]} Re2 {[%emt 0:03:49]} 28. Bb4 {[%emt 0:05:30]} Ne5 {[%emt 0:05:21]} 29. Kb1 {[%emt 0:07:56]} Bxd2 {[%emt 0:00:37]} 30. Bxd2 {[%emt 0:00:23]} Nc6 {[%emt 0:05:33]} 31. Kc2 {[%emt 0:08:03]} Kb7 {[%emt 0:01:24]} 32. Kc3 {[%emt 0:01:10]} Kxb6 {[%emt 0:03:58]} 33. Kc4 {[%emt 0:00:55]} Rd8 {[%emt 0:01:47]} 34. Kc3 {[%emt 0:02:27]} Ne5 {[%emt 0:07:48]} 35. Nd4 {[%emt 0:01:51]} Rxd4 {[%emt 0:01:24]} 36. Kxd4 {[%emt 0:00:10]} Rxd2+ {[%emt 0:00:08]} 37. Rxd2 {[%emt 0:00:10]} Nf3+ {[%emt 0:00:03]} 38. Ke3 {[%emt 0:00:09]} Nxd2 {[%emt 0:00:05]} 39. Kxd2 {[%emt 0:00:03]} Kc5 {[%emt 0:00:28]} 40. Kc3 {[%emt 0:00:53]} g6 {[%emt 0:01:02]} 41. Kd3 {[%emt 0:30:19]} Kb4 {[%emt 0:32:53]} 42. Kd4 {[%emt 0:00:05]} Kb3 {[%emt 0:00:09]} 43. Kd5 {[%emt 0:00:09]} Kxb2 {[%emt 0:00:18]} 44. Ke6 {[%emt 0:00:15]} f5 {[%emt 0:00:33]} 45. gxf5 {[%emt 0:00:05]} gxf5 {[%emt 0:00:05]} 46. Kxf5 {[%emt 0:00:10]} a5 {[%emt 0:00:06]} 47. Kg5 {[%emt 0:00:25]} a4 {[%emt 0:00:05]} 48. Kh6 {[%emt 0:00:14]} a3 {[%emt 0:00:05]} 49. Kxh7 {[%emt 0:00:22]} a2 {[%emt 0:00:05]} 50. h4 {[%emt 0:00:06]} a1=Q {[%emt 0:00:07]} 51. h5 {[%emt 0:00:08]} Qa7+ {[%emt 0:00:22]} 52. Kh8 {[%emt 0:01:19]} Qb8+ {[%emt 0:00:09]} 53. Kg7 {[%emt 0:00:10]} Qe5+ {[%emt 0:00:15]} 54. Kg6 {[%emt 0:00:17]} Qh8 {[%emt 0:00:09]} 0-1

[Event "106th British-ch Major 2019"]
[Site "Torquay"]
[Date "2019.07.30"]
[Round "4.23"]
[White "Li, Jack"]
[Black "Fathallah, Joe"]
[Result "1/2-1/2"]
[ECO "C04"]
[WhiteElo "1529"]
[BlackElo "1952"]
[Annotator "NA"]
[PlyCount "93"]
[EventDate "2019.07.27"]
[EventType "swiss"]
[EventCountry "GBR"]
[SourceTitle "playchess.com"]
[Source "ChessBase"]
[SourceQuality "1"]
[TimeControl "40/5400+30:1800+30"]

1. e4 {[%emt 0:00:00]} e6 {[%emt 0:00:00]} 2. d4 {[%emt 0:00:00]} d5 {[%emt 0:00:00]} 3. Nd2 {[%emt 0:00:00]} Nc6 {[%emt 0:00:00]} 4. c3 {[%emt 0:00:00]} e5 {[%emt 0:00:06]} 5. dxe5 {[%emt 0:01:45]} Nxe5 {[%emt 0:00:29]} 6. Qc2 {[%emt 0:02:39]} Nf6 {[%emt 0:02:52]} 7. exd5 {[%emt 0:02:15]} Qxd5 {[%emt 0:01:28]} 8. Ngf3 {[%emt 0:01:02]} Bd6 {[%emt 0:05:07]} 9. Be2 {[%emt 0:01:35]} O-O {[%emt 0:02:13]} 10. O-O {[%emt 0:00:06]} Bg4 {[%emt 0:07:29]} 11. h3 {[%emt 0:01:47]} Nxf3+ {[%emt 0:07:54]} 12. Bxf3 {[%emt 0:00:38]} Qe5 {[%emt 0:01:15]} 13. g3 {[%emt 0:09:38]} Bxh3 {[%emt 0:02:19]} 14. Bxb7 {[%emt 0:01:07]} Rab8 {[%emt 0:02:32]} 15. Bg2 {[%emt 0:00:18]} Bf5 {[%emt 0:05:07]} 16. Qd1 {[%emt 0:05:55]} Bc5 {[%emt 0:09:13]} 17. Nb3 {[%emt 0:06:07]} Rbd8 {[%emt 0:21:31]} 18. Qe1 {[%emt 0:07:34]} Qxe1 {[%emt 0:01:45]} 19. Rxe1 {[%emt 0:00:05]} Bd6 {[%emt 0:01:20]} 20. Nd4 {[%emt 0:01:51]} Bd7 {[%emt 0:03:09]} 21. Bg5 {[%emt 0:05:16]} Rde8 {[%emt 0:01:40]} 22. Bxf6 {[%emt 0:00:13]} gxf6 {[%emt 0:00:12]} 23. Bf3 {[%emt 0:01:02]} f5 {[%emt 0:04:42]} 24. Bc6 {[%emt 0:02:05]} Bxc6 {[%emt 0:00:42]} 25. Nxc6 {[%emt 0:00:45]} a6 {[%emt 0:00:41]} 26. Kg2 {[%emt 0:03:33]} f4 {[%emt 0:00:58]} 27. gxf4 {[%emt 0:00:51]} Bxf4 {[%emt 0:03:16]} 28. Ne7+ {[%emt 0:01:18]} Kh8 {[%emt 0:02:14]} 29. Nd5 {[%emt 0:00:36]} Bd6 {[%emt 0:01:23]} 30. Nf6 {[%emt 0:02:41]} Re6 {[%emt 0:01:03]} 31. Rxe6 {[%emt 0:00:33]} fxe6 {[%emt 0:00:04]} 32. Ne4 {[%emt 0:00:24]} Kg7 {[%emt 0:02:10]} 33. Rd1 {[%emt 0:00:47]} Rd8 {[%emt 0:01:20]} 34. Ng5 {[%emt 0:01:33]} Kf6 {[%emt 0:00:41]} 35. Ne4+ {[%emt 0:00:29]} Ke7 {[%emt 0:00:59]} 36. Rh1 {[%emt 0:02:03]} Rg8+ {[%emt 0:00:37]} 37. Kf3 {[%emt 0:00:20]} Rg7 {[%emt 0:00:21]} 38. Nxd6 {[%emt 0:00:18]} cxd6 {[%emt 0:00:42]} 39. Rh4 {[%emt 0:03:09]} Rf7+ {[%emt 0:02:53]} 40. Ke3 {[%emt 0:00:06]} a5 {[%emt 0:01:19]} 41. b4 {[%emt 0:32:58]} axb4 {[%emt 0:33:14]} 42. cxb4 {[%emt 0:00:08]} d5 {[%emt 0:01:08]} 43. a4 {[%emt 0:00:36]} Kd6 {[%emt 0:00:39]} 44. a5 {[%emt 0:00:19]} Kc6 {[%emt 0:00:00]} 45. Rh6 {[%emt 0:00:00]} Re7 {[%emt 0:00:00]} 46. Kd4 {[%emt 0:00:00]} Kb5 {[%emt 0:00:00]} 47. Ke5 {[%emt 0:00:00]} 1/2-1/2

[Event "106th British-ch Major 2019"]
[Site "Torquay"]
[Date "2019.07.30"]
[Round "4.25"]
[White "Balaji, Aaravamudhan"]
[Black "Forster, James Connor Christo"]
[Result "1-0"]
[ECO "D27"]
[WhiteElo "2034"]
[BlackElo "1831"]
[Annotator "NA"]
[PlyCount "61"]
[EventDate "2019.07.27"]
[EventType "swiss"]
[EventCountry "GBR"]
[SourceTitle "playchess.com"]
[Source "ChessBase"]
[SourceQuality "1"]
[TimeControl "40/5400+30:1800+30"]

1. d4 {[%emt 0:00:00]} d5 {[%emt 0:00:00]} 2. c4 {[%emt 0:00:00]} dxc4 {[%emt 0:00:00]} 3. Nf3 {[%emt 0:00:00]} Nf6 {[%emt 0:00:10]} 4. e3 {[%emt 0:00:08]} e6 {[%emt 0:00:16]} 5. Bxc4 {[%emt 0:00:04]} a6 {[%emt 0:00:24]} 6. O-O {[%emt 0:00:21]} b5 {[%emt 0:00:51]} 7. Be2 {[%emt 0:00:01]} Bb7 {[%emt 0:00:35]} 8. a4 {[%emt 0:00:00]} b4 {[%emt 0:05:01]} 9. Nbd2 {[%emt 0:01:31]} c5 {[%emt 0:02:16]} 10. b3 {[%emt 0:01:00]} Nbd7 {[%emt 0:02:32]} 11. Bb2 {[%emt 0:00:36]} Be7 {[%emt 0:01:13]} 12. Nc4 {[%emt 0:00:32]} O-O {[%emt 0:02:02]} 13. Rc1 {[%emt 0:00:34]} Bd5 {[%emt 0:10:50]} 14. Nfe5 {[%emt 0:09:31]} cxd4 {[%emt 0:12:47]} 15. Bxd4 {[%emt 0:19:15]} Nc5 {[%emt 0:11:05]} 16. Nd3 {[%emt 0:11:53]} Nxd3 {[%emt 0:06:54]} 17. Bxd3 {[%emt 0:01:45]} Rb8 {[%emt 0:03:42]} 18. Ne5 {[%emt 0:06:09]} Bb7 {[%emt 0:13:26]} 19. Nc6 {[%emt 0:05:48]} Bxc6 {[%emt 0:00:22]} 20. Rxc6 {[%emt 0:00:02]} a5 {[%emt 0:00:37]} 21. Qc2 {[%emt 0:03:18]} h6 {[%emt 0:00:33]} 22. Rd1 {[%emt 0:01:50]} Nd5 {[%emt 0:10:50]} 23. Bb5 {[%emt 0:17:30]} Rc8 {[%emt 0:06:18]} 24. e4 {[%emt 0:03:40]} Rxc6 {[%emt 0:00:15]} 25. Bxc6 {[%emt 0:00:28]} Qc7 {[%emt 0:01:49]} 26. exd5 {[%emt 0:00:29]} exd5 {[%emt 0:00:27]} 27. Rc1 {[%emt 0:04:56]} Rc8 {[%emt 0:00:46]} 28. Qf5 {[%emt 0:02:00]} Bg5 {[%emt 0:02:18]} 29. Rc2 {[%emt 0:02:36]} Bf4 {[%emt 0:02:34]} 30. Bxd5 {[%emt 0:01:15]} Re8 {[%emt 0:01:28]} 31. g3 {[%emt 0:02:54]} 1-0

[Event "106th British-ch Major 2019"]
[Site "Torquay"]
[Date "2019.07.30"]
[Round "4.26"]
[White "Camp, Imogen Al"]
[Black "Young, Daniel J"]
[Result "0-1"]
[ECO "D45"]
[WhiteElo "1850"]
[BlackElo "1971"]
[Annotator "NA"]
[PlyCount "60"]
[EventDate "2019.07.27"]
[EventType "swiss"]
[EventCountry "GBR"]
[SourceTitle "playchess.com"]
[Source "ChessBase"]
[SourceQuality "1"]
[TimeControl "40/5400+30:1800+30"]

1. d4 {[%emt 0:00:00]} d5 {[%emt 0:00:00]} 2. c4 {[%emt 0:00:00]} c6 {[%emt 0:00:00]} 3. Nf3 {[%emt 0:00:00]} Nf6 {[%emt 0:00:00]} 4. e3 {[%emt 0:00:07]} e6 {[%emt 0:00:00]} 5. Nc3 {[%emt 0:00:19]} Nbd7 {[%emt 0:00:12]} 6. Qc2 {[%emt 0:01:22]} Bd6 {[%emt 0:00:13]} 7. b3 {[%emt 0:03:49]} O-O {[%emt 0:00:15]} 8. Bd3 {[%emt 0:01:22]} e5 {[%emt 0:00:33]} 9. dxe5 {[%emt 0:04:32]} Nxe5 {[%emt 0:00:15]} 10. Nxe5 {[%emt 0:00:24]} Bxe5 {[%emt 0:00:13]} 11. Bb2 {[%emt 0:01:10]} h6 {[%emt 0:15:19]} 12. h3 {[%emt 0:05:15]} Re8 {[%emt 0:02:12]} 13. O-O {[%emt 0:08:02]} d4 {[%emt 0:09:12]} 14. exd4 {[%emt 0:02:49]} Qxd4 {[%emt 0:02:21]} 15. Na4 {[%emt 0:02:23]} Qf4 {[%emt 0:01:18]} 16. Bxe5 {[%emt 0:00:12]} Rxe5 {[%emt 0:03:41]} 17. Rfe1 {[%emt 0:06:53]} Rg5 {[%emt 0:04:01]} 18. Re3 {[%emt 0:04:49]} Qh4 {[%emt 0:04:47]} 19. Kf1 {[%emt 0:06:12]} Be6 {[%emt 0:05:18]} 20. Nc3 {[%emt 0:03:59]} Ng4 {[%emt 0:11:38]} 21. Rg3 {[%emt 0:12:39]} Qxg3 {[%emt 0:08:26]} 22. fxg3 {[%emt 0:04:32]} Ne3+ {[%emt 0:00:07]} 23. Kf2 {[%emt 0:00:07]} Nxc2 {[%emt 0:00:09]} 24. Bxc2 {[%emt 0:00:04]} Rd8 {[%emt 0:02:10]} 25. Ne4 {[%emt 0:00:55]} Re5 {[%emt 0:01:16]} 26. g4 {[%emt 0:00:54]} f5 {[%emt 0:01:46]} 27. gxf5 {[%emt 0:00:27]} Bxf5 {[%emt 0:00:09]} 28. Kf3 {[%emt 0:00:13]} Bxe4+ {[%emt 0:06:08]} 29. Bxe4 {[%emt 0:00:17]} Rf8+ {[%emt 0:00:17]} 30. Ke3 {[%emt 0:00:17]} Rfe8 {[%emt 0:00:06]} 0-1

[Event "106th British-ch Major 2019"]
[Site "Torquay"]
[Date "2019.07.30"]
[Round "4.27"]
[White "May, Paul"]
[Black "Mueller, Jens"]
[Result "1/2-1/2"]
[ECO "A44"]
[WhiteElo "1832"]
[BlackElo "1965"]
[Annotator "NA"]
[PlyCount "65"]
[EventDate "2019.07.27"]
[EventType "swiss"]
[EventCountry "GBR"]
[SourceTitle "playchess.com"]
[Source "ChessBase"]
[SourceQuality "1"]
[TimeControl "40/5400+30:1800+30"]

1. d4 {[%emt 0:00:00]} g6 {[%emt 0:00:00]} 2. c4 {[%emt 0:00:00]} Bg7 {[%emt 0:00:00]} 3. Nc3 {[%emt 0:00:25]} c5 {[%emt 0:00:12]} 4. d5 {[%emt 0:01:41]} d6 {[%emt 0:00:22]} 5. e4 {[%emt 0:03:11]} e5 {[%emt 0:00:21]} 6. Bd3 {[%emt 0:06:33]} Ne7 {[%emt 0:02:12]} 7. Bg5 {[%emt 0:04:10]} h6 {[%emt 0:01:00]} 8. Bh4 {[%emt 0:00:32]} g5 {[%emt 0:00:44]} 9. Bg3 {[%emt 0:00:13]} Ng6 {[%emt 0:00:36]} 10. Qd2 {[%emt 0:09:19]} Na6 {[%emt 0:01:49]} 11. a3 {[%emt 0:01:52]} Nc7 {[%emt 0:00:14]} 12. f3 {[%emt 0:03:07]} Bd7 {[%emt 0:00:38]} 13. Nge2 {[%emt 0:03:27]} a6 {[%emt 0:11:04]} 14. b4 {[%emt 0:07:36]} b6 {[%emt 0:00:37]} 15. Rb1 {[%emt 0:02:10]} O-O {[%emt 0:06:04]} 16. Bf2 {[%emt 0:05:40]} Ne8 {[%emt 0:01:49]} 17. Ng3 {[%emt 0:01:18]} Nh4 {[%emt 0:00:55]} 18. Be3 {[%emt 0:10:56]} Bh3 {[%emt 0:10:10]} 19. Bf1 {[%emt 0:00:09]} Nf6 {[%emt 0:00:38]} 20. Bxg5 {[%emt 0:06:26]} hxg5 {[%emt 0:01:08]} 21. Qxg5 {[%emt 0:01:04]} Nh7 {[%emt 0:00:16]} 22. Qxd8 {[%emt 0:01:19]} Rfxd8 {[%emt 0:00:06]} 23. gxh3 {[%emt 0:00:24]} Ng5 {[%emt 0:03:54]} 24. Be2 {[%emt 0:05:29]} Nxh3 {[%emt 0:00:14]} 25. bxc5 {[%emt 0:06:57]} bxc5 {[%emt 0:00:10]} 26. Kd2 {[%emt 0:01:26]} Bh6+ {[%emt 0:01:05]} 27. Kc2 {[%emt 0:00:15]} Rab8 {[%emt 0:01:06]} 28. Rxb8 {[%emt 0:01:09]} Rxb8 {[%emt 0:00:09]} 29. Rb1 {[%emt 0:00:04]} Rxb1 {[%emt 0:00:31]} 30. Kxb1 {[%emt 0:02:24]} Bd2 {[%emt 0:00:45]} 31. Na4 {[%emt 0:00:51]} Ba5 {[%emt 0:00:26]} 32. Kc2 {[%emt 0:02:03]} Ng1 {[%emt 0:04:04]} 33. Bd1 {[%emt 0:01:12]} 1/2-1/2

[Event "106th British-ch Major 2019"]
[Site "Torquay"]
[Date "2019.07.30"]
[Round "4.28"]
[White "Howell, Oliver W"]
[Black "Cowan, Richard M"]
[Result "1-0"]
[ECO "E67"]
[WhiteElo "1797"]
[BlackElo "1931"]
[Annotator "NA"]
[PlyCount "107"]
[EventDate "2019.07.27"]
[EventType "swiss"]
[EventCountry "GBR"]
[SourceTitle "playchess.com"]
[Source "ChessBase"]
[SourceQuality "1"]
[TimeControl "40/5400+30:1800+30"]

1. Nf3 {[%emt 0:00:00]} g6 {[%emt 0:00:00]} 2. c4 {[%emt 0:00:00]} Bg7 {[%emt 0:00:00]} 3. g3 {[%emt 0:00:00]} d6 {[%emt 0:01:00]} 4. Bg2 {[%emt 0:00:08]} Nd7 {[%emt 0:04:08]} 5. O-O {[%emt 0:00:23]} Ngf6 {[%emt 0:00:12]} 6. Nc3 {[%emt 0:00:48]} O-O {[%emt 0:00:14]} 7. d4 {[%emt 0:00:38]} c6 {[%emt 0:06:31]} 8. Qc2 {[%emt 0:02:04]} Qc7 {[%emt 0:00:42]} 9. b3 {[%emt 0:00:51]} e5 {[%emt 0:00:26]} 10. dxe5 {[%emt 0:03:10]} dxe5 {[%emt 0:01:56]} 11. e4 {[%emt 0:01:30]} Nc5 {[%emt 0:04:48]} 12. Be3 {[%emt 0:04:05]} Ne6 {[%emt 0:03:09]} 13. h3 {[%emt 0:06:00]} a6 {[%emt 0:02:58]} 14. c5 {[%emt 0:06:22]} a5 {[%emt 0:06:06]} 15. Na4 {[%emt 0:06:15]} Rd8 {[%emt 0:11:56]} 16. Rfd1 {[%emt 0:01:01]} Bd7 {[%emt 0:01:31]} 17. Nb6 {[%emt 0:10:04]} Rab8 {[%emt 0:02:46]} 18. Rd6 {[%emt 0:02:44]} Be8 {[%emt 0:07:13]} 19. Rad1 {[%emt 0:05:23]} Bf8 {[%emt 0:01:19]} 20. Rxd8 {[%emt 0:01:04]} Rxd8 {[%emt 0:00:21]} 21. Rxd8 {[%emt 0:00:16]} Nxd8 {[%emt 0:00:46]} 22. Bg5 {[%emt 0:13:01]} Kg7 {[%emt 0:06:40]} 23. a3 {[%emt 0:24:16]} Ne6 {[%emt 0:05:05]} 24. Be3 {[%emt 0:01:17]} Nd7 {[%emt 0:05:36]} 25. Nxd7 {[%emt 0:00:50]} Bxd7 {[%emt 0:00:08]} 26. Qc3 {[%emt 0:02:14]} f6 {[%emt 0:00:05]} 27. Nd2 {[%emt 0:00:56]} g5 {[%emt 0:02:53]} 28. b4 {[%emt 0:00:41]} axb4 {[%emt 0:00:06]} 29. axb4 {[%emt 0:00:03]} Be8 {[%emt 0:01:20]} 30. Bf1 {[%emt 0:01:11]} Qd7 {[%emt 0:00:20]} 31. Kh2 {[%emt 0:00:44]} Bg6 {[%emt 0:00:50]} 32. Qd3 {[%emt 0:01:52]} Nd4 {[%emt 0:16:18]} 33. Bxd4 {[%emt 0:01:05]} Qxd4 {[%emt 0:00:05]} 34. Qxd4 {[%emt 0:00:10]} exd4 {[%emt 0:00:05]} 35. Bd3 {[%emt 0:00:34]} Kf7 {[%emt 0:02:13]} 36. Nb3 {[%emt 0:02:06]} Be7 {[%emt 0:00:28]} 37. Na5 {[%emt 0:01:40]} Ke6 {[%emt 0:01:23]} 38. Nxb7 {[%emt 0:00:39]} Ke5 {[%emt 0:00:51]} 39. f3 {[%emt 0:01:18]} f5 {[%emt 0:01:08]} 40. Na5 {[%emt 0:01:01]} fxe4 {[%emt 0:01:04]} 41. Nxc6+ {[%emt 0:02:39]} Kf6 {[%emt 0:01:16]} 42. fxe4 {[%emt 0:01:07]} Bf8 {[%emt 0:05:05]} 43. e5+ {[%emt 0:06:13]} Ke6 {[%emt 0:00:20]} 44. Bxg6 {[%emt 0:00:25]} hxg6 {[%emt 0:00:05]} 45. Nxd4+ {[%emt 0:01:01]} Kxe5 {[%emt 0:00:06]} 46. c6 {[%emt 0:13:12]} Kd6 {[%emt 0:02:56]} 47. c7 {[%emt 0:01:43]} Kd7 {[%emt 0:00:32]} 48. b5 {[%emt 0:01:03]} Bc5 {[%emt 0:02:20]} 49. Ne6 {[%emt 0:00:06]} Be3 {[%emt 0:00:09]} 50. Kg2 {[%emt 0:00:41]} Kc8 {[%emt 0:01:17]} 51. Kf3 {[%emt 0:00:26]} Bd2 {[%emt 0:00:55]} 52. Ke4 {[%emt 0:00:31]} Kd7 {[%emt 0:03:03]} 53. Kd5 {[%emt 0:00:26]} Be3 {[%emt 0:00:08]} 54. g4 {[%emt 0:01:35]} 1-0

[Event "106th British-ch Major 2019"]
[Site "Torquay"]
[Date "2019.07.30"]
[Round "4.29"]
[White "Ifalore, Michael"]
[Black "Lim, Mark"]
[Result "1-0"]
[ECO "E09"]
[WhiteElo "1907"]
[BlackElo "2265"]
[Annotator "NA"]
[PlyCount "83"]
[EventDate "2019.07.27"]
[EventType "swiss"]
[EventCountry "GBR"]
[SourceTitle "playchess.com"]
[Source "ChessBase"]
[SourceQuality "1"]
[TimeControl "40/5400+30:1800+30"]

1. c4 {[%emt 0:00:00]} e6 {[%emt 0:00:00]} 2. g3 {[%emt 0:00:00]} Nf6 {[%emt 0:00:00]} 3. d4 {[%emt 0:00:00]} d5 {[%emt 0:00:14]} 4. Nf3 {[%emt 0:00:00]} Be7 {[%emt 0:00:21]} 5. Bg2 {[%emt 0:00:00]} O-O {[%emt 0:00:18]} 6. O-O {[%emt 0:00:00]} Nbd7 {[%emt 0:00:26]} 7. Qc2 {[%emt 0:00:00]} c6 {[%emt 0:00:41]} 8. Nbd2 {[%emt 0:00:00]} b6 {[%emt 0:01:02]} 9. e4 {[%emt 0:00:00]} Bb7 {[%emt 0:01:03]} 10. e5 {[%emt 0:00:06]} Ne8 {[%emt 0:00:51]} 11. Rd1 {[%emt 0:02:10]} Rc8 {[%emt 0:01:26]} 12. Qd3 {[%emt 0:08:39]} c5 {[%emt 0:04:18]} 13. b3 {[%emt 0:02:14]} cxd4 {[%emt 0:05:46]} 14. Qxd4 {[%emt 0:00:14]} Nc7 {[%emt 0:10:05]} 15. Qg4 {[%emt 0:01:39]} f5 {[%emt 0:05:34]} 16. exf6 {[%emt 0:01:13]} Nxf6 {[%emt 0:03:57]} 17. Qh3 {[%emt 0:02:49]} dxc4 {[%emt 0:04:01]} 18. Bb2 {[%emt 0:00:24]} cxb3 {[%emt 0:10:30]} 19. Ne4 {[%emt 0:02:10]} Bxe4 {[%emt 0:04:52]} 20. Rxd8 {[%emt 0:00:07]} Rfxd8 {[%emt 0:00:49]} 21. axb3 {[%emt 0:01:48]} Rd3 {[%emt 0:04:26]} 22. Nd4 {[%emt 0:00:59]} Bxg2 {[%emt 0:08:34]} 23. Kxg2 {[%emt 0:00:26]} Rd2 {[%emt 0:02:22]} 24. Bc3 {[%emt 0:02:33]} Rd3 {[%emt 0:00:17]} 25. Rc1 {[%emt 0:00:27]} Nfd5 {[%emt 0:08:49]} 26. Ne2 {[%emt 0:01:29]} Rf8 {[%emt 0:05:44]} 27. Qg4 {[%emt 0:00:30]} Rf7 {[%emt 0:01:04]} 28. Qe4 {[%emt 0:00:19]} Rdf3 {[%emt 0:04:22]} 29. Qxf3 {[%emt 0:00:42]} Rxf3 {[%emt 0:00:04]} 30. Kxf3 {[%emt 0:00:05]} Kf7 {[%emt 0:01:12]} 31. Be5 {[%emt 0:00:05]} Nb5 {[%emt 0:01:28]} 32. Nf4 {[%emt 0:00:14]} Nxf4 {[%emt 0:01:05]} 33. Kxf4 {[%emt 0:00:10]} g5+ {[%emt 0:01:15]} 34. Ke4 {[%emt 0:00:44]} Bc5 {[%emt 0:01:30]} 35. Rd1 {[%emt 0:00:18]} Ke7 {[%emt 0:01:16]} 36. f4 {[%emt 0:00:40]} g4 {[%emt 0:01:26]} 37. f5 {[%emt 0:00:22]} exf5+ {[%emt 0:01:12]} 38. Kxf5 {[%emt 0:00:04]} h5 {[%emt 0:00:26]} 39. Kg5 {[%emt 0:00:20]} Ke6 {[%emt 0:01:59]} 40. Re1 {[%emt 0:00:25]} Kd5 {[%emt 0:00:03]} 41. Kxh5 {[%emt 0:30:36]} Nd4 {[%emt 0:30:13]} 42. Bxd4 {[%emt 0:00:29]} 1-0